Cogmind - Beta 16.1 --- EXPLORER MODE // 2026.03.30 @ 15:48:10 Player: Space Dips Result: Destroyed by S-27 Virus with Autogun Performance ------------- Evolutions (4) 2000 Regions Visited (10) 2000 Robots Destroyed (111) 555 Value Destroyed (4457) 4457 Prototype IDs (5) 100 Alien Tech Used (0) 0 Bonus (126) 126 TOTAL SCORE: 9238 Bonus ------- Follower Combat Kills 126 Cogmind --------- Core Integrity 0/850 Matter 299/300 Energy 74/100 System Corruption 17% Temperature Cool (0) Movement Core (50) Location -6/Factory Parts ------- > --- POWER (3) -------- (None) > --- PROPULSION (3) --- (None) > --- UTILITY (6) ------ (None) > --- WEAPON (4) ------- (None) > --- INVENTORY (5) ---- Arc Projector High-powered Shock Rifle Advanced Assault Cannon Peak State ------------ > --- POWER ------------ Micro Nuclear Core Micro Nuclear Core Neutrino Core > --- PROPULSION ------- Gravmag System Combat Gravmag System Combat Gravmag System > --- UTILITY ---------- Cryofiber Web High-capacity Storage Unit Advanced Weight Redist. System Trap Scanner Improved Melee Analysis Suite Improved Phase Shifter > --- WEAPON ----------- Assault Cannon Flak Cannon Improved Grenade Launcher Great Maul > --- INVENTORY -------- Light Deuterium Engine Light Nuclear Core Light Angular Momentum Engine Aluminum Leg Carbon-fiber Leg Titanium Leg Armored Leg Gravmag System Enhanced Optical Array Signal Interpreter Terrain Scan Processor Targeting Computer Shock Absorption System High-powered Tractor Beam Heavy Laser Great Maul [Rating: 68] Favorites ----------- Power Micro Nuclear Core Engine Improved Ion Engine Power Core Micro Nuclear Core Propulsion Carbon-fiber Leg Treads Light Treads Leg Carbon-fiber Leg Wheel Compact Wheel Hover Unit Combat Gravmag System Flight Unit VTOL Module Utility High-capacity Storage Unit Device Cryofiber Web Storage High-capacity Storage Unit Processor Improved Melee Analysis Suite Hackware Improved System Shield Protection Improved Medium Armor Plating Weapon Beamcaster Energy Gun Beamcaster Energy Cannon Beam Cannon Ballistic Gun Assault Rifle Ballistic Cannon Advanced Assault Cannon Launcher Improved Grenade Launcher Special Weapon Plasma Cutter Impact Weapon Great Maul Build | -11 -10 -9 -9 -8 -7 -7 -7 -6 -6 -6 ------- Run | Yrd Mat Mat Sto Mat Fac Low Low Fac Was Fac Slots Evolved 9 | . 1 2 . 2 2 . . 2 . . Power 2 | . . . . 1 . . . 1 . . Propulsion 1 | . . 1 . . . . . . . . Utility 4 | . 1 1 . . 2 . . . . . Weapon 2 | . . . . 1 . . . 1 . . Parts Attached 102 | 9 2 9 10 10 7 4 18 26 5 2 Power 21 | 1 . 2 2 2 2 2 3 4 1 2 Engine 9 | 1 . 1 2 2 . 1 . 1 1 . Core 12 | . . 1 . . 2 1 3 3 . 2 Reactor . | . . . . . . . . . . . Propulsion 24 | 4 . 3 2 3 . . 6 5 1 . Treads 4 | 2 . 2 . . . . . . . . Leg 12 | 2 . . 2 3 . . 2 2 1 . Wheel 1 | . . 1 . . . . . . . . Hover 4 | . . . . . . . 1 3 . . Flight 3 | . . . . . . . 3 . . . Utility 36 | 2 2 2 4 2 4 2 5 11 2 . Device 15 | . . . 1 2 3 . 2 6 1 . Storage 3 | 1 1 . 1 . . . . . . . Processor 6 | 1 . . . . . 1 2 1 1 . Hackware 1 | . . . . . . . . 1 . . Protection 11 | . 1 2 2 . 1 1 1 3 . . Artifact . | . . . . . . . . . . . Weapon 21 | 2 . 2 2 3 1 . 4 6 1 . Energy Gun 4 | . . . 1 . . . . 2 1 . Energy Cannon 3 | . . . . 1 . . . 2 . . Ballistic Gun 3 | 2 . . . . . . . 1 . . Ballistic Cannon 5 | . . . . 1 1 . 2 1 . . Launcher 1 | . . . . . . . 1 . . . Special Weapon 1 | . . . 1 . . . . . . . Impact Weapon 4 | . . 2 . 1 . . 1 . . . Slashing Weapon . | . . . . . . . . . . . Piercing Weapon . | . . . . . . . . . . . Special Melee Weapon . | . . . . . . . . . . . Unidentified Prototypes . | . . . . . . . . . . . Parts Lost 49 | . . . 6 4 1 . 7 19 11 1 Power 8 | . . . 1 1 . . . 4 1 1 Propulsion 9 | . . . 1 1 1 . 1 3 2 . Utility 18 | . . . 2 2 . . 4 6 4 . Weapon 14 | . . . 2 . . . 2 6 4 . Highest Loss Streak 9 | . . . 3 2 1 . 4 8 9 1 To Critical Strikes 1 | . . . . . . . . . 1 . Average Backups 14 | 4 9 13 14 15 17 19 16 8 2 . Power 1 | . 1 1 1 . . 1 2 1 . . Propulsion 2 | 1 2 3 2 2 1 1 2 2 . . Utility 7 | 1 3 4 6 7 8 10 8 3 1 . Weapon 4 | . 2 4 4 5 6 6 4 . . . Tool/Special . | . . . . . . . . . . . Unused Backups 20 | . 2 5 1 . 2 1 . 7 2 . Power 1 | . . . . . . . . . 1 . Propulsion 1 | . . . . . . . . 1 . . Utility 12 | . 2 1 1 . 1 1 . 6 . . Weapon 6 | . . 4 . . 1 . . . 1 . Tool/Special . | . . . . . . . . . . . Average Slot Usage (%) 92 | . 100 99 93 96 98 99 95 83 49 9 Engine 4 | . 12 5 7 15 5 . 2 3 3 . Core 8 | . . 4 2 . 8 14 11 10 6 9 Treads 2 | . 25 29 9 . . . . . . . Leg 14 | . . . 17 24 20 21 13 2 . . Hover 1 | . . . . . . . . 9 3 . Device 18 | . . . 4 9 27 27 21 16 9 . Storage 6 | . 12 10 10 8 7 7 7 2 . . Processor 3 | . 12 10 5 . . . 5 6 . . Protection 9 | . 12 20 18 12 7 7 7 6 12 . Energy Gun 4 | . . . 3 8 7 7 3 1 3 . Energy Cannon 3 | . . . . 2 7 7 5 1 3 . Ballistic Gun 2 | . 25 19 3 2 . . . 2 3 . Ballistic Cannon 4 | . . . . 2 3 7 6 8 3 . Impact Weapon 3 | . . 1 10 8 2 . 3 3 . . Peak Build Rating 68 | 7 9 20 24 32 43 46 48 68 62 9 Average Rating 37 | 5 8 13 18 29 39 43 44 53 35 7 On Entrance 25 | . 7 9 18 24 32 43 46 44 62 . Avg Prop Armor Cover (%) 8 | 21 . . . . . . 2 . . . Naked Turns 45 | . . . . . . . . . 28 17 Heaviest Build 97 | 16 29 39 63 78 84 82 87 97 57 16 Greatest Support 63 | 40 40 63 63 45 45 40 51 57 15 3 Greatest Overweight (x) 25 | . . . 2 2 7 2 25 4 4 5 Average Overweight (x) 1 | . . . . 1 1 1 2 1 . 3 Largest Inventory Capacity 20 | 10 15 15 20 20 20 20 20 20 5 5 Average Capacity 17 | 9 11 15 19 20 20 20 20 11 5 5 Most Carried 20 | 9 14 15 17 19 20 20 20 17 4 2 Average Carried 14 | 5 9 13 14 15 17 19 16 8 2 . Final Capacity 20 | 10 15 15 20 20 20 20 20 5 5 5 Final Carried 20 | 7 14 15 16 17 19 20 11 4 . 3 Class Distribution -------------------- 49% | Hacker-Mutant 46% | Hacker-Tank 4% | Scavenger-Tank Dominant Class ---------------- Hacker-Mutant | -10/Materials Hacker-Mutant | -9/Materials Hacker-Mutant | -9/Storage Hacker-Mutant | -8/Materials Hacker-Tank | -7/Factory Hacker-Tank | -7/Lower Caves Hacker-Mutant | -7/Lower Caves Hacker-Tank | -6/Factory Scavenger-Tank | -6/Waste Hacker-Mutant | -6/Factory Resources | -11 -10 -9 -9 -8 -7 -7 -7 -6 -6 -6 ----------- Run | Yrd Mat Mat Sto Mat Fac Low Low Fac Was Fac Matter Collected 2597 | 217 99 174 127 219 334 126 557 469 166 109 Remotely . | . . . . . . . . . . . Salvage Created 4668 | . 16 203 670 887 1260 49 837 746 . . Parts 184 | . 2 17 27 30 51 7 27 23 . . Haulers Intercepted 1 | . . . . 1 . . . . . . Recyclers Shooed 3 | . . . . . . . . 3 . . Parts Field Recycled . | . . . . . . . . . . . Retrieved Matter . | . . . . . . . . . . . Parts Self-Destructed . | . . . . . . . . . . . Prevented . | . . . . . . . . . . . Parts Restored . | . . . . . . . . . . . Kills | -11 -10 -9 -9 -8 -7 -7 -7 -6 -6 -6 ------- Run | Yrd Mat Mat Sto Mat Fac Low Low Fac Was Fac Combat Hostiles Destroyed 91 | . . 6 16 19 15 2 19 14 . . Melee 17 | . . 1 8 5 2 . . 1 . . Guns 25 | . . 5 3 5 5 2 4 1 . . Cannons 30 | . . . . 7 6 . 8 9 . . AOE 4 | . . . . . . . 3 1 . . Classes Destroyed 14 | . 1 3 1 4 2 1 2 . . . Worker 1 | . . . . 1 . . . . . . Hauler 1 | . . . . 1 . . . . . . Recycler 11 | . . . . 1 9 . . 1 . . Operator 1 | . . . 1 . . . . . . . Watcher 6 | . 1 1 2 . . . . 2 . . Swarmer 9 | . . 3 . 3 . . 3 . . . Grunt 49 | . . 2 10 10 10 . 7 10 . . Brawler 5 | . . . . 1 . . 3 1 . . Duelist 3 | . . . . . 1 . 2 . . . Protector 1 | . . . . . . . 1 . . . Sentry 17 | . . 1 6 5 3 . 2 . . . Hunter 1 | . . . . . . . 1 . . . Programmer 5 | . . . . . 1 1 . 3 . . Thief 1 | . . . . . . 1 . . . . Best Kill Streak 7 | . 1 3 5 7 7 1 7 5 . . Combat Bots Only 7 | . . 3 4 6 3 1 7 4 . . Max Kills in Single Turn 4 | . 1 1 1 1 4 1 2 1 . . Gunslinging . | . . . . . . . . . . . Exploded 2 | . . . . . . . 2 1 . . Melee 1 | . . 1 1 1 1 . . 1 . . Uniques/NPCs Destroyed . | . . . . . . . . . . . Combat | -11 -10 -9 -9 -8 -7 -7 -7 -6 -6 -6 -------- Run | Yrd Mat Mat Sto Mat Fac Low Low Fac Was Fac Hostile Shots Fired 926 | . . 35 200 114 173 6 125 221 11 41 Missed 262 | . . 10 52 25 77 1 27 58 1 11 Hits 664 | . . 25 148 89 96 5 98 163 10 30 Melee 42 | . . . . . 1 3 26 2 10 . Projectile 622 | . . 25 148 89 95 2 72 161 . 30 AOE 3 | . . . . . . . . 3 . . Critical Strikes 35 | . . 1 4 9 . . 6 8 7 . Actively Blocked 4 | . . . . 1 . . . . 3 . Damage Taken 6653 | . . 153 1267 822 477 27 1319 1991 298 299 Core 1671 | . . 14 235 152 19 . 396 489 172 194 Absorbed by Shields 463 | . . . . 8 199 12 244 . . . Redirected to Shielding 142 | . . 16 49 37 . . . 15 25 . Ignored by Resistances 3999 | . . 104 776 505 445 24 731 1065 169 180 Core Remaining (%) 69 | 100 100 . 37 72 . . 40 . . . Volleys Fired 187 | . 4 16 14 35 40 7 26 41 4 . Largest 4 | . 2 2 1 2 3 3 3 4 4 . Hottest 199 | . 40 40 75 135 175 175 175 199 192 . Shots Fired 429 | . 8 32 14 70 110 24 67 95 9 . Gun 203 | . 8 32 14 44 40 9 16 34 6 . Cannon 222 | . . . . 26 70 15 49 59 3 . Launcher 4 | . . . . . . . 2 2 . . Special . | . . . . . . . . . . . Kinetic 203 | . 8 32 12 26 30 7 26 58 4 . Thermal 202 | . . . 2 44 80 17 39 19 1 . Explosive 4 | . . . . . . . 2 2 . . Electromagnetic 20 | . . . . . . . . 16 4 . Robot Hit Streak 50 | . 3 17 16 50 28 32 10 32 41 . Robot Miss Streak 5 | . 5 1 . 1 3 1 2 5 . . Penetration Max . | . . . . . . . . . . . Secondary Targets 1 | . . 1 . . . . . . . . Max Gunslinging Chain 1 | . . 1 . . . . . . . . Shots Hit Robots 409 | . 3 28 54 81 82 7 63 82 9 . Core Hits 177 | . 2 13 16 30 32 2 32 48 2 . Critical Kills 8 | . . . 5 2 1 . . . . . Critical Parts Destroyed 17 | . . . 9 3 . . 4 1 . . Critical Strikes 41 | . . . 15 10 6 1 7 2 . . Burn 9 | . . . . 5 3 . 1 . . . Meltdown 1 | . . . . . 1 . . . . . Destroy 1 | . . . . 1 . . . . . . Blast 4 | . . . . . 2 1 . 1 . . Smash 26 | . . . 15 4 . . 6 1 . . Melee Attacks 89 | . . 1 40 19 3 . 17 9 . . Impact 89 | . . 1 40 19 3 . 17 9 . . Slashing . | . . . . . . . . . . . Piercing . | . . . . . . . . . . . Sneak Attacks 4 | . . . . 3 1 . . . . . Combat Hostiles . | . . . . . . . . . . . Follow-up Attacks . | . . . . . . . . . . . Damage Inflicted 11616 | . 28 326 1697 2163 2527 199 1938 2625 113 . Guns 2940 | . 28 266 193 718 696 93 277 581 88 . Cannons 3474 | . . . . 476 980 106 767 1120 25 . Explosions 1320 | . . . . . 646 . 229 445 . . Melee 3835 | . . 60 1504 969 191 . 665 446 . . Ramming 47 | . . . . . 14 . . 33 . . Kinetic 3086 | . 28 266 152 407 473 67 502 1102 89 . Thermal 3904 | . . . 41 787 1849 132 542 535 18 . Explosive 483 | . . . . . . . 229 254 . . Electromagnetic 261 | . . . . . . . . 255 6 . Impact 3835 | . . 60 1504 969 191 . 665 446 . . Slashing . | . . . . . . . . . . . Piercing . | . . . . . . . . . . . Highest Corruption 17 | . . . . . 2 2 3 2 17 17 Average Corruption 2 | . . . . . 1 2 2 1 8 17 Corruption Purged . | . . . . . . . . . . . Corruption Blocked . | . . . . . . . . . . . Effects 78 | . . . . . 6 33 16 7 8 8 Message Errors 17 | . . . . . 1 4 5 2 4 1 Matter Fused 21 | . . . . . 3 10 2 3 1 2 Heat Flow Errors 6 | . . . . . . 5 1 . . . Energy Discharges 9 | . . . . . . 5 2 . 1 1 Parts Rejected 2 | . . . . . . . . 1 . 1 Data Loss (minor) 9 | . . . . . 1 2 3 . 1 2 Data Loss (major) 7 | . . . . . 1 4 1 . . 1 Misfires 3 | . . . . . . 3 . . . . Alerts 2 | . . . . . . . 2 . . . Misdirections 1 | . . . . . . . . . 1 . Weapon Failures 1 | . . . . . . . . 1 . . Overload Shots . | . . . . . . . . . . . Overflow Damage 1234 | . . . 380 331 147 5 105 266 . . Projectiles 46 | . . . . 16 7 5 . 18 . . Explosions 183 | . . . . . 140 . . 43 . . Melee 1005 | . . . 380 315 . . 105 205 . . Knockbacks 39 | . . . 2 7 7 1 7 15 . . Impact 14 | . . . 2 4 2 . 2 4 . . Kinetic 24 | . . . . 3 4 1 5 11 . . Secondary 1 | . . . . . 1 . . . . . Self-Inflicted Damage 162 | . . . . . 148 . . 14 . . Shots 3 | . . . . . 3 . . . . . Rammed 6 | . . . . . . . . 6 . . Targets Rammed 9 | . . . . . 3 . . 6 . . Kicked 3 | . . . . . 3 . . . . . Crushed . | . . . . . . . . . . . Highest Temperature 1059 | . 6 27 49 445 330 140 1059 619 95 . Average Temperature 191 | . 4 9 15 124 119 57 307 278 51 . Received Heat Transfer 3115 | . . 84 882 756 216 . 346 831 . . Effects 58 | . . . . 4 . . 27 27 . . Shutdowns 11 | . . . . 3 . . 6 2 . . Energy Bleed 9 | . . . . 1 . . 4 4 . . Interference 14 | . . . . . . . 6 8 . . Matter Decay 4 | . . . . . . . 1 3 . . Short Circuit 4 | . . . . . . . 3 1 . . Damage (minor) 8 | . . . . . . . 4 4 . . Damage (major) 4 | . . . . . . . . 4 . . Damage (core) 4 | . . . . . . . 3 1 . . Siege Activations . | . . . . . . . . . . . Martial Activations . | . . . . . . . . . . . Shielding Activations . | . . . . . . . . . . . Robots Disrupted . | . . . . . . . . . . . Combat Hostiles . | . . . . . . . . . . . Robots Corrupted 15 | . . . 5 4 . . 4 2 . . Combat Hostiles 13 | . . . 5 2 . . 4 2 . . Parts Fried 15 | . . . 2 6 . . 3 4 . . Impact Corruptions 41 | . . . 16 10 . . 8 7 . . Robots Melted 2 | . . . . . 2 . . . . . Combat Hostiles 2 | . . . . . 2 . . . . . Parts Melted 7 | . . . . . 4 . 1 2 . . Heat Transferred 6744 | . . . 74 1813 2816 222 1053 729 37 . Parts Sabotaged . | . . . . . . . . . . . Parts Stolen 1 | . . . . . . 1 . . . . Parts Stripped . | . . . . . . . . . . . Power Chain Reactions . | . . . . . . . . . . . Alert | -11 -10 -9 -9 -8 -7 -7 -7 -6 -6 -6 ------- Run | Yrd Mat Mat Sto Mat Fac Low Low Fac Was Fac Maximum Alert Level 1 | . . . 1 . . . . . . . Low Security (%) 99 | 100 100 100 93 100 100 . . 100 100 100 Level 1 . | . . . 6 . . . . . . . Level 2 . | . . . . . . . . . . . Level 3 . | . . . . . . . . . . . Level 4 . | . . . . . . . . . . . Level 5 . | . . . . . . . . . . . High Security . | . . . . . . . . . . . Max Security . | . . . . . . . . . . . Peak Influence 222 | . 7 65 222 137 141 . . 190 1 . Initial 16 | . . . 2 16 13 . . . 1 . Average 35 | . . 20 89 58 34 . . 23 . . Influence Increases 2885 | . 10 172 582 575 499 30 395 622 . . Destroy 0b10 Robot/C 1860 | . . 120 400 380 300 20 360 280 . . Destroy 0b10 Robot/NC 105 | . 5 5 15 15 45 . 5 15 . . Destroy Leader 434 | . 2 32 114 102 70 10 30 74 . . Successful Hack 31 | . 3 . 8 . 10 . . 10 . . Disable Machine 108 | . . . . . 28 . . 80 . . Destroy Structure 107 | . . . . 3 46 . . 58 . . Lose Combat Pursuer 240 | . . 15 45 75 . . . 105 . . Influence Decreases 2885 | . 10 162 537 590 523 46 395 617 5 . Entered New Map 87 | . . . 8 39 27 9 . . 4 . Time Decay 2559 | . 10 162 449 511 486 37 360 543 1 . Lost Part 214 | . . . 60 40 10 . 35 69 . . Lost Ally 25 | . . . 20 . . . . 5 . . Squads Dispatched 23 | . 1 . 5 3 5 . 1 8 . . Investigation 4 | . 1 . . . 2 . . 1 . . Extermination 5 | . . . . . 2 . . 3 . . Reinforcement 4 | . . . . 3 . . . 1 . . Assault 3 | . . . 2 . . . 1 . . . Garrison 7 | . . . 3 . 1 . . 3 . . Intercept . | . . . . . . . . . . . Searches Triggered . | . . . . . . . . . . . Construction Impeded . | . . . . . . . . . . . Haulers Reinforced 1 | . . . . . . . . 1 . . Active Scanning Responses . | . . . . . . . . . . . Cargo Convoy Interrupts . | . . . . . . . . . . . Stealth | -11 -10 -9 -9 -8 -7 -7 -7 -6 -6 -6 --------- Run | Yrd Mat Mat Sto Mat Fac Low Low Fac Was Fac Distress Signals 6 | . . . 2 1 1 . . 2 . . Communications Jammed . | . . . . . . . . . . . Distress Signals . | . . . . . . . . . . . Times Spotted 148 | . 2 10 25 30 21 3 20 27 5 5 Peak Tracking Total 7 | . 1 3 5 6 4 2 7 6 6 3 Tactical Retreats 14 | . . 1 3 5 . . . 5 . . Traps | -11 -10 -9 -9 -8 -7 -7 -7 -6 -6 -6 ------- Run | Yrd Mat Mat Sto Mat Fac Low Low Fac Was Fac Traps Triggered 4 | . . . . . 3 . . 1 . . Indirectly . | . . . . . . . . . . . Trap Hack Attempts . | . . . . . . . . . . . Triggered . | . . . . . . . . . . . Disarmed 3 | . 3 . . . . . . . . . Reprogrammed . | . . . . . . . . . . . Reused . | . . . . . . . . . . . Traps Extracted . | . . . . . . . . . . . Installed . | . . . . . . . . . . . Triggered . | . . . . . . . . . . . Machines | -11 -10 -9 -9 -8 -7 -7 -7 -6 -6 -6 ---------- Run | Yrd Mat Mat Sto Mat Fac Low Low Fac Was Fac Machines Disabled 28 | . . . . . 7 1 . 20 . . Max in Single Turn 20 | . . . . . 5 1 . 20 . . Machines Repaired . | . . . . . . . . . . . Machines Dismantled . | . . . . . . . . . . . Machines Sabotaged . | . . . . . . . . . . . Overloaded Fab Kills . | . . . . . . . . . . . Hacking | -11 -10 -9 -9 -8 -7 -7 -7 -6 -6 -6 --------- Run | Yrd Mat Mat Sto Mat Fac Low Low Fac Was Fac Machines Accessed 10 | . 1 1 1 1 2 . . 4 . . Terminals 7 | . 1 1 1 1 1 . . 2 . . Fabricators 2 | . . . . . . . . 2 . . Repair Stations . | . . . . . . . . . . . Recycling Units . | . . . . . . . . . . . Scanalyzers 1 | . . . . . 1 . . . . . Garrison Access . | . . . . . . . . . . . Total Hacks 29 | . 3 4 5 3 7 . . 7 . . Successful 24 | . 3 4 4 1 7 . . 5 . . Failed 5 | . . . 1 2 . . . 2 . . Catastrophic . | . . . . . . . . . . . Database Lockouts . | . . . . . . . . . . . Manual 1 | . 1 . . . . . . . . . Terminals 21 | . 3 4 5 3 3 . . 3 . . Fabricators 4 | . . . . . . . . 4 . . Repair Stations . | . . . . . . . . . . . Recycling Units . | . . . . . . . . . . . Scanalyzers 4 | . . . . . 4 . . . . . Garrison Access . | . . . . . . . . . . . Terminal Hacks 18 | . 3 4 4 1 3 . . 3 . . Record 9 | . . 3 3 . 2 . . 1 . . Part Schematic 1 | . . . . . . . . 1 . . Robot Analysis 1 | . . . . 1 . . . . . . Prototype ID Bank 2 | . . 1 . . 1 . . . . . Open DSF 1 | . . . . . . . . 1 . . Machine Index 1 | . . . 1 . . . . . . . Locate Traps 1 | . 1 . . . . . . . . . Disarm Traps 1 | . 1 . . . . . . . . . Transport Status 1 | . 1 . . . . . . . . . Fabricator Hacks 2 | . . . . . . . . 2 . . Build 2 | . . . . . . . . 2 . . Repair Station Hacks . | . . . . . . . . . . . Recycling Unit Hacks . | . . . . . . . . . . . Scanalyzer 4 | . . . . . 4 . . . . . Retrieve Study 4 | . . . . . 4 . . . . . Garrison Access Hacks . | . . . . . . . . . . . Unauthorized Hacks . | . . . . . . . . . . . Terminals . | . . . . . . . . . . . Fabricators . | . . . . . . . . . . . Repair Stations . | . . . . . . . . . . . Recycling Units . | . . . . . . . . . . . Scanalyzers . | . . . . . . . . . . . Garrison Access . | . . . . . . . . . . . Data Cores Recovered 1 | . . . 1 . . . . . . . Used . | . . . . . . . . . . . Hacking Detections 7 | . 1 . 1 1 2 . . 2 . . Full Trace Events 4 | . 1 . . . 2 . . 1 . . Feedback Events 1 | . . . . . 1 . . . . . Corruption 1 | . . . . . 1 . . . . . Feedback Blocked . | . . . . . . . . . . . Robot Schematics Acquired . | . . . . . . . . . . . Robots Built 4 | . . . . . . . . 4 . . Authchips . | . . . . . . . . . . . Time 40 | . . . . . . . . 40 . . Total Robot Build Rating 4 | . . . . . . . . 4 . . Part Schematics Acquired 1 | . . . . . . . . 1 . . Parts Built 2 | . . . . . . . . 2 . . Authchips . | . . . . . . . . . . . Time 53 | . . . . . . . . 53 . . Total Part Build Rating 12 | . . . . . . . . 12 . . Part Studies Acquired 4 | . . . . . 4 . . . . . Parts Repaired . | . . . . . . . . . . . Time . | . . . . . . . . . . . Parts Recycled . | . . . . . . . . . . . Recycled Matter . | . . . . . . . . . . . Retrieved Matter . | . . . . . . . . . . . Retrieved Components . | . . . . . . . . . . . Parts Scanalyzed . | . . . . . . . . . . . Part Schematics Acquired . | . . . . . . . . . . . Parts Damaged . | . . . . . . . . . . . Bothacking | -11 -10 -9 -9 -8 -7 -7 -7 -6 -6 -6 ------------ Run | Yrd Mat Mat Sto Mat Fac Low Low Fac Was Fac Used RIF Installer . | . . . . . . . . . . . Robots Hacked . | . . . . . . . . . . . Non-combat . | . . . . . . . . . . . Combat . | . . . . . . . . . . . Robot Hacks Applied . | . . . . . . . . . . . Relay Couplers Released . | . . . . . . . . . . . Fabnet Peak Effective % . | . . . . . . . . . . . Robots Rewired . | . . . . . . . . . . . Allies Hacked 1 | . . . . . . . . 1 . . Hacks Repelled . | . . . . . . . . . . . Allies | -11 -10 -9 -9 -8 -7 -7 -7 -6 -6 -6 -------- Run | Yrd Mat Mat Sto Mat Fac Low Low Fac Was Fac Total Allies 7 | . . . 2 . . . . 4 1 . Largest Group 4 | . . . 2 . . . . 4 1 . Highest-Rated Group 62 | . . . 62 . . . . 24 31 . Highest-Rated Ally 31 | . . . 31 . . . . 6 31 . Total Orders . | . . . . . . . . . . . Ally Attacks 25 | . . . 15 . . . . . 10 . Total Damage 478 | . . . 289 . . . . . 189 . Kills 4 | . . . 4 . . . . . . . Allies Corrupted . | . . . . . . . . . . . Allies Melted . | . . . . . . . . . . . Intel | -11 -10 -9 -9 -8 -7 -7 -7 -6 -6 -6 ------- Run | Yrd Mat Mat Sto Mat Fac Low Low Fac Was Fac Active Infowar (turns) 5938 | . . . 275 394 1177 2182 756 1153 1 . Sensors 3858 | . . . . . 1177 2182 499 . . . Structural 669 | . . . 275 394 . . . . . . Traps 1411 | . . . . . . . 257 1153 1 . Robot Analysis Total 1 | . . . . 1 . . . . . . Derelict Logs Recovered 3 | . . . . . . 2 1 . . . Drone Launches 2 | . . . . . . . . 2 . . Drone Recoveries . | . . . . . . . . . . . Exploration | -11 -10 -9 -9 -8 -7 -7 -7 -6 -6 -6 ------------- Run | Yrd Mat Mat Sto Mat Fac Low Low Fac Was Fac Turns Passed 8932 | 139 388 285 696 900 1178 2182 1190 1605 217 152 Spaces Moved 3774 | 81 227 129 257 366 455 851 355 831 155 67 Core 194 | 9 . . . . . . 1 . 117 67 Treads 498 | 63 227 129 79 . . . . . . . Legs 2272 | 9 . . 178 366 455 851 311 94 8 . Wheels . | . . . . . . . . . . . Hover 771 | . . . . . . . 4 737 30 . Flight 39 | . . . . . . . 39 . . . Fastest Speed 50 | 50 160 160 160 190 190 185 185 66 50 50 Average Speed 202 | 143 160 160 196 191 219 252 275 157 121 216 Slowest Speed 1565 | 160 160 160 260 260 610 255 1565 360 360 300 Overloaded Moves . | . . . . . . . . . . . Propulsion Burnouts . | . . . . . . . . . . . Robots Hopped . | . . . . . . . . . . . Potential Cave-ins . | . . . . . . . . . . . Cave-ins Triggered . | . . . . . . . . . . . Exploration Rate (%) 33 | 5 38 15 46 31 17 87 38 25 65 2 Regions Visited 10 Branch Regions 3 Pre-discovered Areas . | . . . . . . . . . . . Known Exits Taken 8 | 1 1 1 1 1 1 1 1 . . . Unknown Exits Taken . | . . . . . . . . . . . Scrap Searched 2 | . . . . . . 1 1 . . . Spaces Dug . | . . . . . . . . . . . Terrain Destroyed 128 | . . . . 1 49 1 15 62 . . Melee . | . . . . . . . . . . . Projectile 11 | . . . . 1 4 1 3 2 . . AOE 117 | . . . . . 45 . 12 60 . . Terrain Rammed . | . . . . . . . . . . . Walls Destroyed . | . . . . . . . . . . . Machines Disabled . | . . . . . . . . . . . Actions | -11 -10 -9 -9 -8 -7 -7 -7 -6 -6 -6 --------- Run | Yrd Mat Mat Sto Mat Fac Low Low Fac Was Fac Total 4515 | 103 246 179 354 458 538 871 486 1029 177 74 Wait 138 | . . 4 13 15 . 3 28 72 3 . Move 3765 | 80 226 128 256 365 454 850 354 831 154 67 Hop . | . . . . . . . . . . . Pick Up 124 | 14 11 10 12 10 14 4 10 28 6 5 Fast Attach 12 | . . . . . 3 . 4 5 . . Attach 78 | 7 1 3 7 6 7 1 16 20 8 2 Detach 8 | . . 1 1 . 2 . 3 1 . . Swap 51 | 2 1 7 6 5 4 4 12 10 . . Drop 54 | . 3 9 5 3 8 2 16 6 2 . Fire 187 | . 4 16 14 35 40 7 26 41 4 . Melee 89 | . . 1 40 19 3 . 17 9 . . Ram 6 | . . . . . . . . 6 . . Kick 3 | . . . . . 3 . . . . . Crush . | . . . . . . . . . . . Escape Stasis . | . . . . . . . . . . . Rewire . | . . . . . . . . . . . Trap . | . . . . . . . . . . . Miscellaneous . | . . . . . . . . . . . Route ------- -11/Scrapyard -10/Materials -9/Materials (discovered 3 exits: *Mat / *Min / *Sto) -9/Storage -8/Materials -7/Factory -7/Lower Caves -7/Lower Caves -6/Factory -6/Waste -6/Factory History --------- Turn | Location | Event 3 | -11/Scrapyard | Identified exit to Materials 3 | -11/Scrapyard | Discovered exit to Materials (range 15) 140 | -11/Scrapyard | Entered Materials 140 | -10/Materials | Evolved 1 slot: Utility x1 292 | -10/Materials | Identified exit to Materials 292 | -10/Materials | Discovered exit to Materials (range 10) 313 | -10/Materials | Build established: Hacker-Mutant 528 | -10/Materials | Entered another Materials area 528 | -9/Materials | Evolved 2 slots: Propulsion x1, Utility x1 686 | -9/Materials | Identified exit to Mines 686 | -9/Materials | Discovered exit to Mines (range 3) 776 | -9/Materials | Identified exit to Storage 776 | -9/Materials | Discovered exit to Storage (range 11) 813 | -9/Materials | Identified exit to Materials 813 | -9/Materials | Discovered exit to Materials (range 15) 813 | -9/Materials | Entered Storage 1036 | -9/Storage | Lost 3 parts (1p1n1u) 1096 | -9/Storage | Met a pair of Derelict thieves 1131 | -9/Storage | Core integrity fell below 50% 1198 | -9/Storage | Garrison activated, responded to threat 1442 | -9/Storage | Discovered exit to Materials (range 16) 1509 | -9/Storage | Entered Materials 1509 | -8/Materials | Evolved 2 slots: Power x1, Weapon x1 2405 | -8/Materials | Identified exit to Factory 2405 | -8/Materials | Discovered exit to Factory (range 3) 2409 | -8/Materials | Entered Factory 2409 | -7/Factory | Evolved 2 slots: Utility x2 2861 | -7/Factory | Garrison activated, responded to threat 3458 | -7/Factory | Build established: Hacker-Tank 3560 | -7/Factory | Identified exit to Lower Caves 3560 | -7/Factory | Discovered exit to Lower Caves (range 9) 3587 | -7/Factory | Entered Lower Caves 4394 | -7/Lower Caves | Learned Factory terminal intel 5674 | -7/Lower Caves | Learned Factory terminal intel 5755 | -7/Lower Caves | Identified exit to Lower Caves 5755 | -7/Lower Caves | Discovered exit to Lower Caves (range 9) 5769 | -7/Lower Caves | Entered another Lower Caves area 5804 | -7/Lower Caves | Attracted the attention of an 0b10 checkpoint 5851 | -7/Lower Caves | Core integrity fell below 50% 6300 | -7/Lower Caves | Attracted the attention of an 0b10 outpost 6359 | -7/Lower Caves | Destroyed 7 combat bots 6360 | -7/Lower Caves | Lost 3 parts (2u1w) 6607 | -7/Lower Caves | Build established: Hacker-Mutant 6692 | -7/Lower Caves | Lost 4 parts (1n2u1w) 6825 | -7/Lower Caves | Learned Factory emergency access door positions 6902 | -7/Lower Caves | Identified exit to Factory 6902 | -7/Lower Caves | Discovered exit to Factory (range 15) 6959 | -7/Lower Caves | Entered Factory 6959 | -6/Factory | Evolved 2 slots: Power x1, Weapon x1 6961 | -6/Factory | Loaded intel: 26 terminal locations 7258 | -6/Factory | Fabricated Cmb. Gravmag System (x2) 7288 | -6/Factory | Build established: Hacker-Tank 7667 | -6/Factory | Garrison activated, responded to threat 7690 | -6/Factory | Fabricated K-01 Serf (x4) 7733 | -6/Factory | Lost 5 parts (1p1n2u1w) 7741 | -6/Factory | Lost 3 allies 7815 | -6/Factory | Lost 8 parts (3p1n1u3w) 7841 | -6/Factory | Core integrity fell below 50% 8070 | -6/Factory | Spotted B-75 Beast 8127 | -6/Factory | Lost 4 parts (1n1u2w) 8564 | -6/Factory | Sucked down chute 8564 | -6/Factory | Entered Waste 8565 | -6/Waste | Met a frightened Derelict 8579 | -6/Waste | EMP discharged 8633 | -6/Waste | Spotted C-40 Crusher 8654 | -6/Waste | 2 allies followed down the chute 8673 | -6/Waste | Crushed by Compactor (1 part destroyed, 2 dropped) 8676 | -6/Waste | Crushed by Compactor (1 part destroyed, 2 dropped) 8679 | -6/Waste | EMP discharged 8679 | -6/Waste | System corruption reached 10% 8679 | -6/Waste | Crushed by Compactor (1 part destroyed, 1 dropped) 8682 | -6/Waste | Crushed by Compactor (1 part destroyed, 2 dropped) 8687 | -6/Waste | Crushed by Compactor (1 part destroyed, 1 dropped) 8690 | -6/Waste | Crushed by Compactor (1 part destroyed) 8693 | -6/Waste | Crushed by Compactor (1 part destroyed, 1 dropped) 8695 | -6/Waste | Lost 3 allies 8724 | -6/Waste | Lost 9 parts (1p1n3u4w) 8728 | -6/Waste | Crushed by Compactor (1 part destroyed, 2 dropped) 8729 | -6/Waste | Spotted C-40 Crusher 8753 | -6/Waste | Crushed by Compactor (1 part destroyed) 8756 | -6/Waste | Spotted C-40 Crusher 8765 | -6/Waste | Spotted C-40 Crusher 8765 | -6/Waste | Spotted C-40 Crusher 8766 | -6/Waste | Spotted C-40 Crusher 8776 | -6/Waste | Identified exit to Factory 8776 | -6/Waste | Discovered exit to Factory (range 10) 8779 | -6/Waste | EMP discharged 8781 | -6/Waste | Entered Factory 8782 | -6/Factory | Loaded intel: 25 terminal locations 8911 | -6/Factory | Core integrity fell below 20% 8933 | -6/Factory | Destroyed by S-27 Virus with Autogun Last Messages --------------- Loading Factory terminal intel (x25)... 08789_ Acquired Fission Core. 08792_ Acquired Mic. Nuclear Core. 08803_ System corrupted: Component data lost. 08825_ System corrupted: Matter fused (-10). 08839_ Acquired 109 matter. 08845_ S6HP5T4 BB